bitfinex-derivatives/quotes_SOLF0:USTF0_20251006
["timestamp","ask_amount","ask_price","bid_price","bid_amount"]
[1759718221860,320.77132068,230.5,230.33,7.67]
[1759718222072,1.25508452,230.43,230.32,7.67]
[1759718222265,1.25508452,230.43,230.32,11.5758]
[1759718222466,1.25508452,230.43,230.33,7.67]
[1759718223261,3.4075231,230.47,230.27,7.67]
[1759718223262,1.25508452,230.34,230.27,7.67]
[1759718223466,81.78,230.33,230.27,7.67]
[1759718223669,81.78,230.33,230.21,7.67]
[1759718223670,5.16128452,230.31,230.21,7.67]
[1759718224269,3.9065,230.29,230.21,7.67]
[1759718224461,1.25508452,230.28,230.21,7.67]
[1759718225061,3.9062,230.32,230.21,7.67]
[1759718225264,60.7722,230.28,230.17,4.83686255]
[1759718225463,60.7722,230.28,230.13,7.67]
[1759718225464,60.7784,230.26,230.13,7.67]
[1759718225768,3.9078,230.22,230.13,7.67]
[1759718225963,111.62,230.21,230.13,7.67]
[1759718226966,111.58,230.2,230.13,7.67]
[1759718227361,4.77132068,230.33,230.13,7.67]
[1759718227671,3.01780913,230.33,230.14,60.8077]
[1759718227863,3.39824088,230.34,230.17,7.67]
[1759718228067,3.39824088,230.35,230.18,7.67]
[1759718229774,3.9059,230.33,230.2,3.9079]
[1759718230473,3.9059,230.33,230.18,7.67]
[1759718233771,3.9063,230.31,230.18,7.67]
[1759718233972,101.54,230.36,230.18,7.67]
[1759718234171,3.38852935,230.35,230.18,7.67]
[1759718234375,3.9057,230.34,230.2,7.67]
[1759718234571,3.38852935,230.35,230.2,7.67]
[1759718234874,3.01780913,230.37,230.2,7.67]
[1759718234875,111.3,230.34,230.21,7.67]
[1759718235465,3.01780913,230.37,230.21,7.67]
[1759718235769,111.28,230.36,230.23,3.9074]
[1759718235973,111.28,230.36,230.24,7.67]
[1759718237977,111.28,230.35,230.24,7.67]
[1759718238279,115.1856,230.35,230.24,7.67]
[1759718238477,111.28,230.35,230.24,7.67]
[1759718241477,3.9054,230.36,230.24,7.67]
[1759718241678,111.08,230.34,230.24,7.67]
[1759718241880,111.02,230.33,230.24,7.67]
[1759718243576,316.02,230.38,230.24,7.67]
[1759718243778,110.9,230.37,230.24,7.67]
[1759718244588,114.8052,230.37,230.24,7.67]
[1759718245179,110.8,230.36,230.24,7.67]
[1759718247380,110.7,230.35,230.24,7.67]
[1759718247981,3.9052,230.37,230.24,7.67]
[1759718248276,110.7,230.34,230.24,7.67]
[1759718249386,110.7,230.34,230.21,3.9079]
[1759718249780,112.66027691,230.34,230.2,7.89]
[1759718250286,3.9065,230.3,230.2,7.89]
[1759718251079,60.7489,230.37,230.2,7.89]
[1759718251281,1.96027691,230.35,230.2,7.89]
[1759718251483,5.34849877,230.35,230.2,7.89]
[1759718252584,5.34849877,230.35,230.23,3.9075]
[1759718252585,3.9059,230.34,230.23,3.9075]
[1759718252990,5.34849877,230.35,230.23,3.9075]
[1759718253291,3.906,230.33,230.2,7.89]
[1759718253885,1.96027691,230.31,230.2,7.89]
[1759718255185,1.96027691,230.31,230.2,11.7979]
[1759718255685,3.9066,230.29,230.2,7.89]
[1759718257284,110.36,230.3,230.2,7.89]
[1759718257687,1.96027691,230.32,230.2,7.89]
[1759718257896,110.26,230.29,230.2,7.89]
[1759718259990,3.9068,230.28,230.2,7.89]
[1759718260595,110.26,230.29,230.2,7.89]
[1759718262698,3.9067,230.28,230.2,7.89]
[1759718262898,3.9067,230.28,230.16,7.99]
[1759718262899,1.96027691,230.28,230.16,7.99]
[1759718263702,3.9072,230.26,230.16,11.8986]
[1759718263898,110.26,230.25,230.16,11.8986]
[1759718265101,60.7569,230.34,230.16,7.99]
[1759718265302,1.96027691,230.3,230.16,7.99]
[1759718266103,3.9068,230.28,230.18,3.9082]
[1759718267607,3.9064,230.3,230.15,7.39]
[1759718267803,3.4034289,230.33,230.17,7.39]
[1759718268005,69.30831522,230.39,230.21,7.39]
[1759718268006,3.4034289,230.34,230.21,7.39]
[1759718268208,110.14,230.33,230.27,11.2967]
[1759718269103,110.1,230.33,230.27,11.2967]
[1759718269505,110.1,230.33,230.27,7.39]
[1759718270397,319.9656,230.35,230.27,7.39]
[1759718270712,110.08,230.34,230.27,7.39]
[1759718271006,3.9059,230.33,230.27,7.39]
[1759718271506,110.0,230.32,230.27,7.39]
[1759718272298,319.9655,230.35,230.22,4.83686255]
[1759718272505,110.0,230.34,230.23,7.39]
[1759718272807,110.0,230.34,230.26,11.2969]
[1759718273011,109.94,230.33,230.26,11.2969]
[1759718274515,316.06,230.35,230.26,11.2969]
[1759718274809,109.94,230.34,230.26,11.2969]
[1759718276010,109.94,230.34,230.26,7.39]
[1759718276209,109.94,230.33,230.26,7.39]
[1759718277715,113.8459,230.33,230.26,7.39]
[1759718279419,109.94,230.33,230.26,7.39]
[1759718280323,5.86537691,230.38,230.26,7.39]
[1759718280513,109.92,230.32,230.26,7.39]
[1759718281618,109.92,230.32,230.26,11.2969]
[1759718282524,5.86537691,230.38,230.27,3.9067]
[1759718282818,109.92,230.37,230.27,3.9067]
[1759718283014,3.9043,230.43,230.27,9.35027691]
[1759718283211,1.96027691,230.41,230.27,7.39]
[1759718283410,60.7429,230.39,230.24,4.83686255]
[1759718283616,1.96027691,230.37,230.22,7.39]
[1759718283817,1.96027691,230.33,230.19,4.83686255]
[1759718284015,80.68,230.32,230.17,7.39]
[1759718284211,3.41083002,230.31,230.17,7.39]
[1759718284411,1.96027691,230.29,230.17,7.39]
[1759718284611,5.36999596,230.29,230.16,3.9086]
[1759718284816,1.96027691,230.29,230.16,3.9086]
[1759718285720,1.96027691,230.29,230.18,3.9083]
[1759718285917,3.40926859,230.31,230.19,7.39]
[1759718286122,109.92,230.3,230.19,7.39]
[1759718286519,316.02,230.33,230.19,7.39]
[1759718286814,109.92,230.32,230.19,7.39]
[1759718287620,1.96027691,230.3,230.16,7.39]
[1759718289720,3.9069,230.27,230.17,3.9084]
[1759718289920,109.92,230.26,230.17,3.9084]
[1759718291431,3.9072,230.25,230.16,7.39]
[1759718292223,111.88027691,230.26,230.16,7.39]
[1759718292422,172.65827691,230.26,230.12,7.39]
[1759718293726,3.9079,230.22,230.12,7.39]
[1759718295027,3.9081,230.21,230.12,7.39]
[1759718295219,109.92,230.2,230.12,7.39]
[1759718298633,113.8281,230.2,230.12,7.39]
[1759718303133,115.0843473,230.2,230.12,7.39]
[1759718304237,5.1643473,230.2,230.12,7.39]
[1759718304436,109.92,230.19,230.12,7.39]
[1759718304735,3.9081,230.2,230.12,7.39]
[1759718304941,109.92,230.19,230.12,7.39]
[1759718305944,109.92,230.18,230.12,7.39]
[1759718306838,109.92,230.18,230.14,7.52]
[1759718307246,109.92,230.18,230.13,3.9091]
[1759718307746,109.92,230.18,230.14,7.52]
[1759718307940,109.92,230.18,230.11,18.43500935]
[1759718308136,109.92,230.18,230.11,17.17876205]
[1759718308540,109.92,230.18,230.12,11.4293]
[1759718309039,109.92,230.18,230.12,7.52]
[1759718309243,1.2562473,230.16,230.07,7.52]
[1759718309442,1.2562473,230.13,230.01,8.7762473]
[1759718309648,1.2562473,230.13,230.01,21.60666206]
[1759718309837,3.9097,230.11,230.01,25.51776206]
[1759718310146,49.4362473,230.1,230.01,20.35041476]
[1759718310353,42.26,230.09,230.01,20.35041476]
[1759718310545,43.5162473,230.09,230.01,20.35041476]
[1759718311445,47.4263473,230.09,230.01,20.35041476]
[1759718313243,3.9103,230.07,229.96,11.2521]
[1759718313449,1.2562473,230.06,229.96,11.2521]
[1759718314044,42.26,230.09,229.94,13.0012404]
[1759718314251,1.2562473,229.97,229.94,13.0012404]
[1759718314544,72.82,229.96,229.94,13.0012404]
[1759718314751,72.82,229.96,229.88,7.34]
[1759718315345,1.2562473,229.94,229.88,7.34]
[1759718315750,1.2562473,229.94,229.85,12.83675709]
[1759718315951,109.92,229.93,229.86,7.34]
[1759718317554,109.94,229.95,229.86,7.34]
[1759718318155,1.2562473,229.96,229.86,7.34]
[1759718318356,109.94,229.95,229.86,7.34]
[1759718320249,111.2162473,230.0,229.86,7.34]
[1759718320458,1.2562473,229.97,229.86,7.34]
[1759718320856,109.96,229.96,229.86,7.34]
[1759718321452,111.2162473,229.97,229.86,7.34]
[1759718321861,115.1282473,229.97,229.86,7.34]
[1759718323256,111.2162473,229.97,229.87,3.9136]
[1759718323754,1.2562473,229.97,229.89,3.9133]
[1759718323951,1.2562473,229.97,229.89,11.2533]
[1759718325347,1.2562473,229.97,229.89,7.34]
[1759718325852,1.2562473,229.93,229.83,7.34]
[1759718326957,24.86,229.94,229.86,7.34]
[1759718328761,3.9127,229.93,229.86,7.34]
[1759718329155,111.4562473,229.96,229.86,7.34]
[1759718329357,3.9123,229.95,229.86,7.34]
[1759718330662,60.8232,230.09,229.86,11.2538]
[1759718330863,1.2562473,229.98,229.87,8.01]
[1759718331658,3.912,229.97,229.87,8.01]
[1759718333462,3.9124,229.95,229.87,8.01]
[1759718335660,1.2562473,229.98,229.87,8.01]
[1759718335661,3.9127,229.93,229.87,8.01]
[1759718336865,1.2562473,229.95,229.87,8.01]
[1759718337067,3.9123,229.96,229.87,8.01]
[1759718337566,3.9125,229.95,229.87,8.01]
[1759718338069,3.9127,229.93,229.87,8.01]
[1759718338269,1.2562473,229.91,229.8,8.01]
[1759718339669,3.9133,229.89,229.8,8.01]
[1759718340074,1.2562473,229.91,229.8,8.01]
[1759718340376,1.2562473,229.91,229.81,3.9147]
[1759718340667,3.9125,229.95,229.82,8.01]
[1759718340864,1.2562473,229.92,229.82,8.01]
[1759718341066,1.2562473,229.92,229.83,3.9143]
[1759718341268,1.2562473,229.92,229.84,8.01]
[1759718341762,1.2562473,229.92,229.85,3.914]
[1759718343272,1.2562473,229.92,229.84,8.01]
[1759718346679,3.913,229.91,229.84,8.01]
[1759718347774,3.9125,229.95,229.84,8.01]
[1759718347974,58.4762473,229.94,229.84,8.01]
[1759718348474,1.2562473,229.94,229.87,3.9137]
[1759718348677,82.1162473,229.97,229.88,8.01]
[1759718349069,1.2562473,229.97,229.88,8.01]
[1759718349778,1.2562473,229.97,229.89,3.9133]
[1759718350580,1.2562473,230.0,229.9,8.01]
[1759718350882,427.7562473,230.01,229.9,8.01]
[1759718351181,317.7362473,230.01,229.9,8.01]
[1759718351379,427.7362473,230.01,229.9,8.01]
[1759718351575,427.7362473,230.01,229.92,3.9128]
[1759718351780,3.9106,230.06,229.93,8.01]
[1759718351981,37.26,230.07,229.93,8.01]
[1759718352185,1.2562473,230.05,229.99,8.01]
[1759718352575,316.54,230.16,229.99,8.01]
[1759718352774,1.2562473,230.1,229.99,8.01]
[1759718352976,1.2562473,230.1,230.0,3.9113]
[1759718353277,1.2562473,230.1,229.99,8.01]
[1759718353784,1.2562473,230.1,229.99,11.9216]
[1759718353976,1.2562473,230.1,229.99,8.01]
[1759718354178,111.2562473,230.1,229.99,8.01]
[1759718354883,1.2562473,230.07,229.95,11.9222]
[1759718355183,1.2562473,230.07,229.96,8.01]
[1759718355574,3.9105,230.06,229.97,3.9119]
[1759718357184,1.2562473,230.07,229.97,3.9119]
[1759718357885,1.2562473,230.07,229.98,7.31]
[1759718359988,115.1262473,230.09,230.0,7.31]
[1759718360590,1.2562473,230.1,230.02,7.31]
[1759718361885,5.1660473,230.1,230.02,7.31]
[1759718362583,115.1060473,230.1,230.02,7.31]
[1759718363982,5.1660473,230.1,230.02,7.31]
[1759718364190,109.94,230.09,230.02,7.31]
[1759718366790,1.96457991,230.12,230.02,7.31]
[1759718367092,113.8297,230.11,230.02,7.31]
[1759718368996,109.92,230.1,230.02,7.31]
[1759718370398,3.9093,230.13,230.02,7.31]
[1759718370601,109.9,230.12,230.02,7.31]
[1759718371694,109.9,230.12,230.03,3.9108]
[1759718372295,109.9,230.12,230.04,7.31]
[1759718372698,109.9,230.12,230.04,11.2206]
[1759718372898,109.9,230.12,230.04,7.31]
[1759718373097,318.50457991,230.16,230.04,7.31]
[1759718373395,109.9,230.15,230.09,7.34]
[1759718374004,316.54,230.16,230.09,7.34]
[1759718374204,426.44,230.16,230.09,7.34]
[1759718374505,109.9,230.16,230.09,20.40964947]
[1759718375200,109.88,230.17,230.09,20.40964947]
[1759718375605,109.88,230.17,230.11,3.9096]
[1759718375798,109.88,230.17,230.09,20.40964947]
[1759718376699,1.96457991,230.24,230.09,20.40964947]
[1759718376900,3.9082,230.2,230.1,3.9096]
[1759718377209,109.88,230.19,230.1,3.9096]
[1759718377707,109.86,230.19,230.11,7.34]
[1759718380107,109.86,230.19,230.07,7.34]
[1759718380512,3.9091,230.15,230.07,20.06410808]
[1759718382414,3.9091,230.15,230.07,7.34]
[1759718383909,109.84,230.14,230.07,7.34]
[1759718387313,3.9083,230.19,230.08,3.9101]
[1759718387621,61.86,230.18,230.07,7.34]
[1759718387818,61.86,230.17,230.07,7.34]
[1759718388122,65.7686,230.17,230.07,7.34]
[1759718389618,65.7686,230.17,230.07,11.2502]
[1759718396927,60.7758,230.27,230.06,13.2055994]
[1759718397117,109.78,230.26,230.09,7.71]
[1759718397312,109.78,230.26,230.1,4.83686255]
[1759718397515,3.9082,230.19,230.09,3.9098]
[1759718397721,60.7831,230.24,230.08,7.71]
[1759718397722,1.96457991,230.21,230.08,7.71]
[1759718397916,82.06,230.18,230.08,7.71]
[1759718398318,82.06,230.18,230.08,11.6199]
[1759718398717,1.96457991,230.27,230.09,7.71]
[1759718398922,70.38,230.26,230.09,7.71]
[1759718399222,70.38,230.26,230.1,7.71]
[1759718399425,1.96457991,230.27,230.1,7.71]
[1759718399627,1.96457991,230.27,230.16,3.9087]
[1759718399919,12.58292068,230.34,230.17,7.71]
[1759718399920,109.76,230.34,230.17,7.71]
[1759718400222,109.76,230.34,230.19,11.6181]
[1759718400414,1.96457991,230.32,230.19,7.71]
[1759718400617,124.0,230.38,230.18,7.71]
[1759718400818,1.96457991,230.37,230.21,1.96457991]
[1759718401020,1.96457991,230.37,230.22,7.71]
[1759718401221,3.9055,230.36,230.22,7.71]
[1759718401425,0.75570853,230.41,230.22,7.71]
[1759718401426,0.75570853,230.41,230.25,1.96457991]
[1759718401616,320.1442,230.43,230.27,3.9068]
[1759718401822,96.98,230.42,230.28,7.71]
[1759718402322,3.9049,230.39,230.28,7.71]
[1759718402922,3.9053,230.37,230.28,7.71]
[1759718403426,5.86937991,230.4,230.28,7.71]
[1759718403627,1.96457991,230.4,230.28,7.71]
[1759718404022,109.72,230.39,230.28,7.71]
[1759718404221,3.9046,230.41,230.28,3.9066]
[1759718404425,3.9046,230.41,230.29,7.71]
[1759718404626,109.72,230.4,230.29,7.71]
[1759718405020,109.72,230.4,230.29,20.55217499]
[1759718405725,3.9049,230.39,230.29,20.55217499]
[1759718407621,3.9053,230.37,230.29,20.55217499]
[1759718408424,60.7507,230.36,230.22,7.71]
[1759718408731,60.7442,230.39,230.22,7.71]
[1759718409126,3.9059,230.33,230.22,7.71]
[1759718409830,3.9054,230.36,230.23,7.71]
[1759718410130,1.96457991,230.4,230.23,7.71]
[1759718410324,70.2,230.39,230.27,7.71]
[1759718411725,3.9051,230.38,230.27,7.71]
[1759718412730,3.9054,230.36,230.27,7.71]
[1759718413631,113.565,230.39,230.27,7.71]
[1759718414031,3.9052,230.37,230.27,7.71]
[1759718414629,109.64,230.39,230.27,7.71]
[1759718415727,109.64,230.39,230.3,7.71]
[1759718415928,316.24,230.43,230.3,7.71]
[1759718416129,109.64,230.42,230.3,7.71]
[1759718416832,3.9045,230.41,230.3,11.6164]
[1759718417630,109.64,230.42,230.33,7.71]
[1759718417631,109.62,230.42,230.33,7.71]
[1759718417829,425.86,230.43,230.33,7.71]
[1759718418235,316.24,230.43,230.34,3.9057]
[1759718420932,3.9036,230.47,230.36,7.45]
[1759718421138,113.5036,230.47,230.36,7.45]
[1759718422641,1.96457991,230.5,230.36,7.45]
[1759718422934,109.6,230.49,230.36,7.45]
[1759718423136,109.58,230.49,230.36,7.45]
[1759718423543,109.58,230.49,230.38,7.45]
[1759718424329,60.7042,230.54,230.38,7.45]
[1759718424530,1.96457991,230.57,230.43,7.45]
[1759718425038,1.25249689,230.53,230.43,7.45]
[1759718425239,109.56,230.52,230.43,7.45]
[1759718426233,60.6785,230.64,230.43,7.45]
[1759718426234,60.6828,230.62,230.43,7.45]
[1759718426434,1.25249689,230.54,230.43,7.45]
[1759718427737,1.25249689,230.54,230.43,11.354]
[1759718427937,1.25249689,230.54,230.43,7.45]
[1759718428835,4.77132068,230.75,230.52,60.7065]
[1759718429040,60.6362,230.8,230.57,7.45]
[1759718429041,109.64,230.74,230.57,7.45]
[1759718429337,1.25249689,230.69,230.57,7.45]
[1759718429735,1.25249689,230.66,230.57,7.45]
[1759718430740,50.96,230.67,230.57,7.45]
[1759718430939,3.8997,230.7,230.57,7.45]
[1759718431143,92.07249689,230.69,230.57,11.3517]
[1759718431736,1.25249689,230.69,230.57,11.3517]
[1759718431936,109.92,230.68,230.57,11.3517]
[1759718432936,1.25249689,230.69,230.57,11.3517]
[1759718433133,111.13249689,230.69,230.57,11.3517]
[1759718433934,1.25249689,230.69,230.59,3.9013]
[1759718434136,60.6466,230.76,230.57,20.73317684]
[1759718434446,1.25249689,230.7,230.57,20.73317684]
[1759718434842,5.15219689,230.7,230.57,20.73317684]
[1759718435041,5.15219689,230.7,230.58,1.25249689]
[1759718436634,3.8992,230.73,230.61,1.25249689]
[1759718436834,1.25249689,230.72,230.61,1.25249689]
[1759718437645,3.8995,230.71,230.61,1.25249689]
[1759718437840,95.04,230.7,230.61,1.25249689]
[1759718438046,1.25249689,230.68,230.57,13.28317684]
[1759718438341,1.25249689,230.68,230.57,7.96]
[1759718438547,35.82,230.7,230.6,7.96]
[1759718440048,60.6307,230.82,230.65,1.25249689]
[1759718440049,0.75462697,230.78,230.65,1.25249689]
[1759718440345,109.64,230.77,230.65,9.21249689]
[1759718440853,315.86,230.86,230.71,1.25249689]
[1759718441052,1.25249689,230.84,230.72,7.96]
[1759718441541,1.25249689,230.82,230.72,7.96]
[1759718441742,315.86,230.86,230.74,1.25249689]
[1759718441951,109.7,230.85,230.75,11.8587]
[1759718442748,315.86,230.86,230.77,9.21249689]
[1759718442947,315.86,230.86,230.77,7.96]
[1759718443153,1.25249689,230.85,230.77,7.96]
[1759718443351,1.25249689,230.85,230.71,7.96]
[1759718443654,315.86,230.86,230.71,7.96]
[1759718443655,1.25249689,230.82,230.71,7.96]
[1759718445054,3.8975,230.83,230.71,7.96]
[1759718447454,109.56,230.82,230.71,7.96]
[1759718448154,3.8978,230.81,230.71,7.96]
[1759718448652,3.8981,230.79,230.71,7.96]
[1759718449249,3.8975,230.83,230.71,7.96]
[1759718449449,109.42,230.82,230.71,7.96]
[1759718450255,3.8978,230.81,230.71,7.96]
[1759718450458,109.42,230.82,230.71,7.96]
[1759718451758,3.8982,230.79,230.71,7.96]
[1759718454666,3.8985,230.77,230.64,7.51]
[1759718454856,60.6538,230.73,230.51,60.7098]
[1759718455062,60.6538,230.73,230.58,7.51]
[1759718455063,60.6535,230.73,230.58,7.51]
[1759718455356,0.75444701,230.8,230.51,63.71338802]
[1759718455357,60.5983,230.94,230.72,60.6552]
[1759718455556,60.5983,230.94,230.74,7.51]
[1759718455754,3.8958,230.93,230.79,7.51]
[1759718455954,51.92,230.93,230.79,7.51]
[1759718457257,3.8961,230.91,230.79,7.51]
[1759718458863,51.92,230.93,230.79,7.51]
[1759718459661,3.8959,230.92,230.79,7.51]
[1759718460365,51.92,230.93,230.82,7.51]
[1759718460960,51.92,230.93,230.83,3.8974]
[1759718462057,60.5711,231.05,230.82,20.75915582]
[1759718462058,60.563,231.08,230.89,7.51]
[1759718462464,60.5775,231.02,230.89,7.51]
[1759718462661,3.8947,230.99,230.89,7.51]
[1759718463168,60.5881,230.98,230.83,7.51]
[1759718463368,60.5906,230.97,230.83,7.51]
[1759718464165,60.5934,230.96,230.83,7.51]
[1759718464966,60.5721,231.04,230.85,11.4069]
[1759718465169,60.5774,231.02,230.85,11.4069]
[1759718465664,112.58,231.01,230.87,3.8966]
[1759718466772,112.58,231.01,230.89,3.8963]
[1759718468467,112.58,231.01,230.88,7.51]
[1759718468665,60.5852,230.99,230.82,13.04593661]
[1759718468864,3.00358802,231.0,230.83,7.51]
[1759718469369,112.58,231.01,230.85,7.51]
[1759718469772,112.58,231.01,230.85,11.407]
[1759718470465,112.58,231.01,230.85,7.51]
[1759718471076,116.4745,231.01,230.85,7.51]
[1759718471376,112.58,231.01,230.85,7.51]
[1759718471878,112.58,231.01,230.82,13.19142549]
[1759718471879,3.8939,231.04,230.83,7.51]
[1759718472178,112.38,231.02,230.86,7.51]
[1759718473579,112.38,231.02,230.9,3.8962]
[1759718473779,112.38,231.02,230.9,11.4062]
[1759718475579,3.8944,231.01,230.9,11.4062]
[1759718476178,3.8944,231.01,230.9,7.51]
[1759718477981,112.38,231.02,230.9,7.51]
[1759718478384,112.38,231.02,230.91,3.896]
[1759718479189,112.38,231.02,230.93,3.8957]
[1759718479585,112.38,231.02,230.9,7.51]
[1759718479990,112.38,231.02,230.94,3.8955]
[1759718480489,315.32,231.05,230.93,7.75]
[1759718480490,315.32,231.05,230.96,3.8952]
[1759718480686,111.9,231.04,230.96,3.8952]
[1759718481484,111.9,231.04,230.93,11.6456]
[1759718481990,111.9,231.04,230.93,7.75]
[1759718482690,111.9,231.04,230.95,3.8953]
[1759718485386,111.9,231.04,230.93,7.75]
[1759718486693,111.9,231.04,230.95,3.8953]
[1759718487497,111.9,231.04,230.93,7.75]
[1759718488695,111.9,231.04,230.94,3.8955]
[1759718489897,111.9,231.04,230.95,3.8952]
[1759718490194,111.9,231.04,230.96,7.75]
[1759718492298,111.9,231.04,230.97,3.8949]
[1759718493394,111.12,231.08,230.97,3.8949]
[1759718493600,111.12,231.07,230.97,3.8949]
[1759718493995,3.8935,231.06,230.97,3.8949]
[1759718494198,111.12,231.07,230.9,7.78]
[1759718494396,60.5721,231.04,230.86,11.36496835]
[1759718494595,171.6847,231.07,230.86,11.36496835]
[1759718494596,3.8945,231.0,230.89,3.8962]
[1759718494790,97.08,230.99,230.89,3.8962]
[1759718496103,111.04,231.02,230.88,7.78]
[1759718496293,111.04,231.02,230.88,11.36496835]
[1759718496495,111.04,231.02,230.89,7.78]
[1759718497198,111.04,231.02,230.89,11.36496835]
[1759718497503,111.04,231.02,230.9,7.78]
[1759718498300,380.59842207,231.13,230.94,3.8955]
[1759718498301,60.5539,231.11,230.94,3.8955]
[1759718498493,110.94,231.1,230.94,3.8955]
[1759718499504,3.894,231.04,230.94,3.8955]
[1759718499704,110.94,231.1,230.95,3.8952]
[1759718500701,3.8939,231.04,230.94,11.36496835]
[1759718500901,102.5139,231.04,230.94,11.36496835]
[1759718501105,102.5139,231.04,230.95,3.58496835]
[1759718501606,102.5139,231.04,230.95,7.48036835]
[1759718502803,102.5139,231.04,230.95,3.58496835]
[1759718503006,3.8942,231.02,230.94,3.58496835]
[1759718503205,98.62,231.04,230.95,3.58496835]
[1759718504406,98.62,231.04,230.96,3.58496835]
[1759718504610,439.04,231.13,230.97,7.78]
[1759718504798,110.64,231.12,230.97,11.36496835]
[1759718505402,3.893,231.09,230.99,3.8945]
[1759718505598,3.893,231.09,230.98,3.58496835]
[1759718506208,110.62,231.09,231.0,11.36496835]
[1759718506407,110.62,231.09,231.01,3.58496835]
[1759718507008,110.62,231.09,231.02,3.8942]
[1759718507209,110.62,231.09,231.01,3.58496835]
[1759718507608,110.58,231.1,231.01,3.58496835]
[1759718508698,110.58,231.1,231.02,3.58496835]
[1759718509308,110.58,231.1,231.03,3.58496835]
[1759718513805,60.5588,231.09,231.02,3.58496835]
[1759718514106,60.5588,231.09,231.0,3.58496835]
[1759718514510,1.94734422,231.06,231.0,3.58496835]
[1759718514709,110.24,231.05,231.0,3.58496835]
[1759718515706,3.8939,231.04,231.0,3.58496835]
[1759718518111,110.24,231.05,231.0,3.58496835]
[1759718519118,3.8943,231.01,231.0,3.58496835]
[1759718519317,60.5725,231.04,230.97,3.58496835]
[1759718519516,60.5725,231.04,230.96,3.58496835]
[1759718519916,3.8945,231.0,230.96,3.58496835]
[1759718520117,110.1,230.99,230.96,3.58496835]
[1759718520417,3.895,230.97,230.95,3.58496835]
[1759718520617,110.1,230.99,230.96,3.58496835]
[1759718521117,1.94734422,231.04,230.96,3.58496835]
[1759718521323,1.94734422,231.1,230.99,3.58496835]
[1759718521523,110.08,231.09,231.01,3.58496835]
[1759718522515,110.08,231.09,231.03,3.58496835]
[1759718523525,170.6394,231.09,231.02,3.58496835]
[1759718524725,3.8936,231.06,231.02,3.58496835]
[1759718524924,170.6394,231.09,231.02,3.58496835]
[1759718527218,3.8936,231.06,231.02,11.48496835]
[1759718527419,315.04,231.13,231.03,3.58496835]
[1759718527623,315.04,231.13,231.04,3.58496835]
[1759718527624,110.0,231.12,231.04,3.58496835]
[1759718527925,3.8932,231.08,231.04,3.58496835]
[1759718528115,113.8932,231.08,231.04,3.58496835]
[1759718528720,110.0,231.08,231.04,3.58496835]
[1759718529226,110.0,231.08,231.03,11.48496835]
[1759718529621,110.0,231.08,231.04,3.58496835]
[1759718530017,110.0,231.08,231.04,11.48496835]
[1759718531831,110.0,231.08,231.04,3.58496835]
[1759718532026,110.0,231.08,231.05,7.9]
[1759718532724,110.0,231.08,231.04,3.58496835]
[1759718532927,110.0,231.08,231.05,7.9]